[Event "Titled Tuesday Blitz January 03 Late 2023"]
[White "Manukian, Artak"]
[Black "Zeynalli, Rashad"]
[WhiteFideId "13301373"]
[BlackFideId "13403320"]
[WhiteElo "2196"]
[BlackElo "2200"]
[Result "0-1"]
[Round "09"]
[TimeControl "180+2"]
[Date "2023.01.03"]
[WhiteClock "0:01:18"]
[BlackClock "0:01:53"]

1. e4 {[%clk 0:02:59]}  c5 {[%clk 0:02:59]} 2. Nf3 {[%clk 0:02:59]}  d6 {[%clk 0:02:59]} 3. Bb5+ {[%clk 0:02:58]}  Bd7 {[%clk 0:02:59]} 4. Bxd7+ {[%clk 0:02:58]}  Qxd7 {[%clk 0:03:00]} 5. c4 {[%clk 0:02:58]}  Nc6 {[%clk 0:03:00]} 6. Nc3 {[%clk 0:02:58]}  g6 {[%clk 0:03:00]} 7. d4 {[%clk 0:02:57]}  cxd4 {[%clk 0:03:01]} 8. Nxd4 {[%clk 0:02:54]}  Bg7 {[%clk 0:03:01]} 9. Be3 {[%clk 0:02:54]}  Nf6 {[%clk 0:03:02]} 10. f3 {[%clk 0:02:54]}  O-O {[%clk 0:03:02]} 11. Qd2 {[%clk 0:02:51]}  a6 {[%clk 0:03:02]} 12. a4 {[%clk 0:02:50]}  e6 {[%clk 0:02:55]} 13. O-O {[%clk 0:02:48]}  d5 {[%clk 0:02:54]} 14. Nxc6 {[%clk 0:02:45]}  bxc6 {[%clk 0:02:53]} 15. e5 {[%clk 0:02:42]}  Ne8 {[%clk 0:02:46]} 16. f4 {[%clk 0:02:25]}  Nc7 {[%clk 0:02:46]} 17. Ne4 {[%clk 0:02:18]}  Rfd8 {[%clk 0:02:42]} 18. Nd6 {[%clk 0:02:10]}  Ne8 {[%clk 0:02:38]} 19. c5 {[%clk 0:02:09]}  Nxd6 {[%clk 0:02:31]} 20. cxd6 {[%clk 0:02:08]}  f6 {[%clk 0:02:31]} 21. Bd4 {[%clk 0:02:04]}  c5 {[%clk 0:02:30]} 22. Bxc5 {[%clk 0:01:48]}  fxe5 {[%clk 0:02:30]} 23. fxe5 {[%clk 0:01:46]}  Bxe5 {[%clk 0:02:31]} 24. Rae1 {[%clk 0:01:42]}  Bxd6 {[%clk 0:02:30]} 25. Bd4 {[%clk 0:01:40]}  Rf8 {[%clk 0:02:27]} 26. Qh6 {[%clk 0:01:33]}  Rxf1+ {[%clk 0:02:25]} 27. Rxf1 {[%clk 0:01:32]}  Rf8 {[%clk 0:02:25]} 28. Re1 {[%clk 0:01:31]}  e5 {[%clk 0:02:07]} 29. Bxe5 {[%clk 0:01:27]}  Qa7+ {[%clk 0:01:55]} 30. Qe3 {[%clk 0:01:18]}  Bc5 {[%clk 0:01:53]} 0-1


[Site "https://www.chess.com"]

[Event "Titled Tuesday Blitz January 03 Late 2023"]
[White "Ansh M Shah"]
[Black "Goroshkov, Maksym"]
[WhiteFideId "25033379"]
[BlackFideId "14142716"]
[WhiteElo "2171"]
[BlackElo "2287"]
[Result "1-0"]
[Round "09"]
[TimeControl "180+2"]
[Date "2023.01.03"]
[WhiteClock "0:00:18"]
[BlackClock "0:01:21"]

1. d4 {[%clk 0:03:00]}  Nf6 {[%clk 0:03:00]} 2. c4 {[%clk 0:03:01]}  e5 {[%clk 0:02:59]} 3. dxe5 {[%clk 0:03:01]}  Ng4 {[%clk 0:03:00]} 4. Nf3 {[%clk 0:03:01]}  Nc6 {[%clk 0:03:00]} 5. Nc3 {[%clk 0:03:00]}  Ngxe5 {[%clk 0:03:00]} 6. e3 {[%clk 0:02:56]}  d6 {[%clk 0:02:59]} 7. Be2 {[%clk 0:02:57]}  Be6 {[%clk 0:02:59]} 8. b3 {[%clk 0:02:56]}  Be7 {[%clk 0:02:58]} 9. Bb2 {[%clk 0:02:56]}  Bf6 {[%clk 0:02:59]} 10. O-O {[%clk 0:02:56]}  O-O {[%clk 0:02:59]} 11. Qc2 {[%clk 0:02:55]}  g6 {[%clk 0:02:55]} 12. Rad1 {[%clk 0:02:55]}  Bg7 {[%clk 0:02:54]} 13. Qb1 {[%clk 0:02:49]}  Qe7 {[%clk 0:02:44]} 14. Qa1 {[%clk 0:02:49]}  Rad8 {[%clk 0:02:40]} 15. Nd5 {[%clk 0:02:45]}  Bxd5 {[%clk 0:02:39]} 16. Rxd5 {[%clk 0:02:45]}  Nxf3+ {[%clk 0:02:37]} 17. Bxf3 {[%clk 0:02:46]}  Bxb2 {[%clk 0:02:35]} 18. Qxb2 {[%clk 0:02:47]}  Ne5 {[%clk 0:02:35]} 19. Be2 {[%clk 0:02:47]}  Qf6 {[%clk 0:02:32]} 20. Qd2 {[%clk 0:02:35]}  Nc6 {[%clk 0:02:21]} 21. Rd1 {[%clk 0:02:31]}  Ne7 {[%clk 0:02:20]} 22. Rd4 {[%clk 0:02:30]}  Nf5 {[%clk 0:02:19]} 23. Rd3 {[%clk 0:02:30]}  b6 {[%clk 0:02:16]} 24. Bg4 {[%clk 0:02:30]}  Rfe8 {[%clk 0:02:15]} 25. Bxf5 {[%clk 0:02:30]}  Qxf5 {[%clk 0:02:15]} 26. Rd5 {[%clk 0:02:30]}  Qf6 {[%clk 0:02:15]} 27. Qd4 {[%clk 0:02:31]}  Qxd4 {[%clk 0:02:15]} 28. R1xd4 {[%clk 0:02:31]}  Re6 {[%clk 0:02:15]} 29. Rd2 {[%clk 0:02:30]}  Rde8 {[%clk 0:02:15]} 30. g3 {[%clk 0:02:30]}  Re5 {[%clk 0:02:16]} 31. h4 {[%clk 0:02:30]}  Rxd5 {[%clk 0:02:16]} 32. Rxd5 {[%clk 0:02:31]}  h5 {[%clk 0:02:15]} 33. Kg2 {[%clk 0:02:31]}  Kg7 {[%clk 0:02:15]} 34. Kf3 {[%clk 0:02:31]}  Kf6 {[%clk 0:02:15]} 35. Kf4 {[%clk 0:02:32]}  Re5 {[%clk 0:02:10]} 36. e4 {[%clk 0:02:26]}  Ke6 {[%clk 0:02:04]} 37. Rxe5+ {[%clk 0:01:52]}  dxe5+ {[%clk 0:02:05]} 38. Kg5 {[%clk 0:01:53]}  Ke7 {[%clk 0:02:05]} 39. a3 {[%clk 0:01:44]}  a5 {[%clk 0:02:03]} 40. b4 {[%clk 0:01:34]}  c6 {[%clk 0:01:55]} 41. f4 {[%clk 0:00:39]}  axb4 {[%clk 0:01:45]} 42. axb4 {[%clk 0:00:39]}  exf4 {[%clk 0:01:38]} 43. gxf4 {[%clk 0:00:38]}  Ke6 {[%clk 0:01:38]} 44. f5+ {[%clk 0:00:21]}  gxf5 {[%clk 0:01:37]} 45. exf5+ {[%clk 0:00:22]}  Ke5 {[%clk 0:01:38]} 46. f6 {[%clk 0:00:23]}  c5 {[%clk 0:01:12]} 47. bxc5 {[%clk 0:00:17]}  bxc5 {[%clk 0:01:13]} 48. Kxh5 {[%clk 0:00:13]}  Kf5 {[%clk 0:01:14]} 49. Kh6 {[%clk 0:00:12]}  Kxf6 {[%clk 0:01:14]} 50. Kh7 {[%clk 0:00:11]}  Ke5 {[%clk 0:01:13]} 51. h5 {[%clk 0:00:10]}  f5 {[%clk 0:01:13]} 52. Kg6 {[%clk 0:00:10]}  f4 {[%clk 0:01:14]} 53. h6 {[%clk 0:00:11]}  f3 {[%clk 0:01:15]} 54. h7 {[%clk 0:00:11]}  f2 {[%clk 0:01:15]} 55. h8=Q+ {[%clk 0:00:12]}  Ke4 {[%clk 0:01:15]} 56. Qh1+ {[%clk 0:00:12]}  Kd4 {[%clk 0:01:15]} 57. Qf1 {[%clk 0:00:13]}  Ke3 {[%clk 0:01:15]} 58. Kf5 {[%clk 0:00:13]}  Kf3 {[%clk 0:01:16]} 59. Ke5 {[%clk 0:00:14]}  Ke3 {[%clk 0:01:17]} 60. Kd5 {[%clk 0:00:14]}  Kd2 {[%clk 0:01:18]} 61. Kxc5 {[%clk 0:00:15]}  Kc3 {[%clk 0:01:19]} 62. Qxf2 {[%clk 0:00:15]}  Kb3 {[%clk 0:01:20]} 63. Qd4 {[%clk 0:00:15]}  Ka4 {[%clk 0:01:20]} 64. Kd5 {[%clk 0:00:15]}  Ka5 {[%clk 0:01:21]} 65. Qc5+ {[%clk 0:00:15]}  Ka6 {[%clk 0:01:21]} 66. Qb5+ {[%clk 0:00:16]}  Ka7 {[%clk 0:01:21]} 67. Kc6 {[%clk 0:00:16]}  Ka8 {[%clk 0:01:22]} 68. Kc7 {[%clk 0:00:17]}  Ka7 {[%clk 0:01:21]} 69. Qb7# {[%clk 0:00:18]} 1-0


[Site "https://www.chess.com"]

[Event "Titled Tuesday Blitz January 03 Late 2023"]
[White "Chor, Kevin"]
[Black "Pein, Jonathan"]
[WhiteFideId "2090740"]
[BlackFideId "417092"]
[WhiteElo "1944"]
[BlackElo "2265"]
[Result "0-1"]
[Round "09"]
[TimeControl "180+2"]
[Date "2023.01.03"]
[WhiteClock "0:00:04"]
[BlackClock "0:00:06"]

1. e4 {[%clk 0:03:00]}  d5 {[%clk 0:03:00]} 2. exd5 {[%clk 0:03:00]}  Qxd5 {[%clk 0:03:01]} 3. Nc3 {[%clk 0:03:00]}  Qe5+ {[%clk 0:03:01]} 4. Be2 {[%clk 0:02:59]}  c6 {[%clk 0:03:01]} 5. Nf3 {[%clk 0:02:59]}  Qc7 {[%clk 0:03:01]} 6. d4 {[%clk 0:02:59]}  Bf5 {[%clk 0:03:01]} 7. O-O {[%clk 0:02:57]}  e6 {[%clk 0:03:01]} 8. Ne5 {[%clk 0:02:52]}  Nf6 {[%clk 0:03:01]} 9. g4 {[%clk 0:02:40]}  Bg6 {[%clk 0:03:01]} 10. h4 {[%clk 0:02:39]}  Nbd7 {[%clk 0:02:52]} 11. f4 {[%clk 0:02:14]}  Nxe5 {[%clk 0:02:44]} 12. dxe5 {[%clk 0:02:14]}  Ne4 {[%clk 0:02:37]} 13. f5 {[%clk 0:02:01]}  Nxc3 {[%clk 0:02:26]} 14. bxc3 {[%clk 0:02:00]}  Qxe5 {[%clk 0:02:26]} 15. Bf4 {[%clk 0:01:50]}  Qxc3 {[%clk 0:02:13]} 16. fxg6 {[%clk 0:01:46]}  hxg6 {[%clk 0:02:05]} 17. Rf3 {[%clk 0:01:34]}  Bc5+ {[%clk 0:01:56]} 18. Kg2 {[%clk 0:01:31]}  Qd4 {[%clk 0:01:03]} 19. Qxd4 {[%clk 0:01:22]}  Bxd4 {[%clk 0:01:04]} 20. Rb1 {[%clk 0:01:23]}  O-O-O {[%clk 0:00:58]} 21. Rd3 {[%clk 0:01:13]}  Bf6 {[%clk 0:00:52]} 22. Rdb3 {[%clk 0:01:02]}  e5 {[%clk 0:00:42]} 23. Rxb7 {[%clk 0:00:44]}  exf4 {[%clk 0:00:33]} 24. Ba6 {[%clk 0:00:44]}  Rd2+ {[%clk 0:00:30]} 25. Kf3 {[%clk 0:00:37]}  Be5 {[%clk 0:00:06]} 26. Rxa7+ {[%clk 0:00:16]}  Kd8 {[%clk 0:00:05]} 27. Ra8+ {[%clk 0:00:17]}  Ke7 {[%clk 0:00:05]} 28. Rxh8 {[%clk 0:00:16]}  Rxc2 {[%clk 0:00:06]} 29. Rb7+ {[%clk 0:00:12]}  Kf6 {[%clk 0:00:06]} 30. g5+ {[%clk 0:00:07]}  Ke6 {[%clk 0:00:04]} 31. Re8+ {[%clk 0:00:05]}  Kd5 {[%clk 0:00:04]} 32. Rd7+ {[%clk 0:00:05]}  Bd6 {[%clk 0:00:05]} 33. Red8 {[%clk 0:00:05]}  Rc3+ {[%clk 0:00:05]} 34. Kg4 {[%clk 0:00:04]}  Rg3# {[%clk 0:00:06]} 0-1


[Site "https://www.chess.com"]

[Event "Titled Tuesday Blitz January 03 Late 2023"]
[White "Denishev, Marat"]
[Black "Kuegel, Tobias"]
[WhiteFideId "24131563"]
[BlackFideId "4636295"]
[WhiteElo "2255"]
[BlackElo "2332"]
[Result "1-0"]
[Round "09"]
[TimeControl "180+2"]
[Date "2023.01.03"]
[WhiteClock "0:00:32"]
[BlackClock "0:00:06"]

1. h4 {[%clk 0:03:00]}  e5 {[%clk 0:02:52]} 2. c4 {[%clk 0:02:59]}  Nc6 {[%clk 0:02:47]} 3. Nc3 {[%clk 0:02:59]}  Nf6 {[%clk 0:02:39]} 4. d3 {[%clk 0:02:55]}  d5 {[%clk 0:02:32]} 5. cxd5 {[%clk 0:02:53]}  Nxd5 {[%clk 0:02:29]} 6. Nf3 {[%clk 0:02:50]}  f6 {[%clk 0:02:15]} 7. h5 {[%clk 0:02:48]}  Be6 {[%clk 0:02:13]} 8. h6 {[%clk 0:02:38]}  g6 {[%clk 0:02:10]} 9. Bd2 {[%clk 0:02:35]}  Qd7 {[%clk 0:02:05]} 10. Qa4 {[%clk 0:02:32]}  Nd4 {[%clk 0:01:50]} 11. Qxd7+ {[%clk 0:02:32]}  Kxd7 {[%clk 0:01:48]} 12. Nxd4 {[%clk 0:02:27]}  exd4 {[%clk 0:01:46]} 13. Nxd5 {[%clk 0:02:14]}  Bxd5 {[%clk 0:01:45]} 14. Rh4 {[%clk 0:02:07]}  c5 {[%clk 0:01:41]} 15. e4 {[%clk 0:02:00]}  Be6 {[%clk 0:01:21]} 16. g3 {[%clk 0:01:53]}  g5 {[%clk 0:01:15]} 17. Rh1 {[%clk 0:01:51]}  Rg8 {[%clk 0:01:14]} 18. f4 {[%clk 0:01:39]}  Bd6 {[%clk 0:00:58]} 19. e5 {[%clk 0:01:31]}  fxe5 {[%clk 0:00:54]} 20. fxg5 {[%clk 0:01:31]}  Bf5 {[%clk 0:00:33]} 21. O-O-O {[%clk 0:01:21]}  Rae8 {[%clk 0:00:19]} 22. Re1 {[%clk 0:01:17]}  e4 {[%clk 0:00:14]} 23. dxe4 {[%clk 0:01:14]}  Bxe4 {[%clk 0:00:12]} 24. Bh3+ {[%clk 0:01:14]}  Kc7 {[%clk 0:00:10]} 25. Rhf1 {[%clk 0:01:13]}  Bxg3 {[%clk 0:00:09]} 26. Rf7+ {[%clk 0:01:11]}  Kb6 {[%clk 0:00:08]} 27. Bd7 {[%clk 0:01:02]}  Bxe1 {[%clk 0:00:06]} 28. Bxe1 {[%clk 0:00:59]}  Bg6 {[%clk 0:00:06]} 29. Rf6+ {[%clk 0:00:49]}  Kc7 {[%clk 0:00:05]} 30. Bxe8 {[%clk 0:00:48]}  Rxe8 {[%clk 0:00:05]} 31. Bg3+ {[%clk 0:00:47]}  Kc8 {[%clk 0:00:05]} 32. Kd2 {[%clk 0:00:41]}  a6 {[%clk 0:00:03]} 33. Bd6 {[%clk 0:00:39]}  b6 {[%clk 0:00:03]} 34. a4 {[%clk 0:00:38]}  Kd7 {[%clk 0:00:03]} 35. a5 {[%clk 0:00:33]}  bxa5 {[%clk 0:00:03]} 36. Bxc5 {[%clk 0:00:33]}  Re6 {[%clk 0:00:04]} 37. Rf8 {[%clk 0:00:31]}  Kc6 {[%clk 0:00:03]} 38. Bxd4 {[%clk 0:00:31]}  Kd5 {[%clk 0:00:04]} 39. Bf6 {[%clk 0:00:29]}  Kc4 {[%clk 0:00:04]} 40. Rc8+ {[%clk 0:00:29]}  Kb3 {[%clk 0:00:03]} 41. Rg8 {[%clk 0:00:29]}  Rd6+ {[%clk 0:00:03]} 42. Ke3 {[%clk 0:00:29]}  Rd7 {[%clk 0:00:03]} 43. Rxg6 {[%clk 0:00:28]}  hxg6 {[%clk 0:00:04]} 44. Bg7 {[%clk 0:00:29]}  Rd8 {[%clk 0:00:02]} 45. h7 {[%clk 0:00:29]}  Re8+ {[%clk 0:00:03]} 46. Kf4 {[%clk 0:00:28]}  a4 {[%clk 0:00:04]} 47. h8=Q {[%clk 0:00:28]}  Rxh8 {[%clk 0:00:04]} 48. Bxh8 {[%clk 0:00:29]}  a3 {[%clk 0:00:05]} 49. bxa3 {[%clk 0:00:29]}  Kxa3 {[%clk 0:00:06]} 50. Ke5 {[%clk 0:00:30]}  Kb4 {[%clk 0:00:05]} 51. Kf6 {[%clk 0:00:31]}  Kc5 {[%clk 0:00:06]} 52. Kxg6 {[%clk 0:00:32]} 1-0


[Site "https://www.chess.com"]

[Event "Titled Tuesday Blitz January 03 Late 2023"]
[White "Kaplan, Avi Harrison"]
[Black "Ehlvest, Jaan"]
[WhiteFideId "30934559"]
[BlackFideId "4500016"]
[WhiteElo "2146"]
[BlackElo "2530"]
[Result "0-1"]
[Round "09"]
[TimeControl "180+2"]
[Date "2023.01.03"]
[WhiteClock "0:00:03"]
[BlackClock "0:00:02"]

1. d4 {[%clk 0:03:00]}  Nf6 {[%clk 0:02:57]} 2. c4 {[%clk 0:02:58]}  e6 {[%clk 0:02:57]} 3. Nc3 {[%clk 0:02:59]}  d5 {[%clk 0:02:55]} 4. cxd5 {[%clk 0:02:58]}  exd5 {[%clk 0:02:55]} 5. Bg5 {[%clk 0:02:59]}  Be7 {[%clk 0:02:55]} 6. e3 {[%clk 0:03:00]}  c6 {[%clk 0:02:55]} 7. Bd3 {[%clk 0:03:00]}  O-O {[%clk 0:02:55]} 8. Nge2 {[%clk 0:03:00]}  Re8 {[%clk 0:02:50]} 9. Qc2 {[%clk 0:03:00]}  g6 {[%clk 0:02:41]} 10. O-O {[%clk 0:02:59]}  a5 {[%clk 0:02:40]} 11. Rad1 {[%clk 0:02:57]}  Na6 {[%clk 0:02:40]} 12. a3 {[%clk 0:02:56]}  Nc7 {[%clk 0:02:37]} 13. f3 {[%clk 0:02:56]}  Ne6 {[%clk 0:02:34]} 14. Bh4 {[%clk 0:02:56]}  b5 {[%clk 0:02:33]} 15. Bf2 {[%clk 0:02:54]}  Ba6 {[%clk 0:02:25]} 16. Kh1 {[%clk 0:02:53]}  b4 {[%clk 0:02:17]} 17. Na4 {[%clk 0:02:43]}  Bxd3 {[%clk 0:02:13]} 18. Rxd3 {[%clk 0:02:44]}  Rc8 {[%clk 0:02:10]} 19. e4 {[%clk 0:02:39]}  dxe4 {[%clk 0:02:04]} 20. fxe4 {[%clk 0:02:32]}  Nxe4 {[%clk 0:02:04]} 21. Bg1 {[%clk 0:02:32]}  Bf8 {[%clk 0:01:41]} 22. Nc5 {[%clk 0:01:56]}  N6xc5 {[%clk 0:01:35]} 23. dxc5 {[%clk 0:01:56]}  Qe7 {[%clk 0:01:35]} 24. Rdf3 {[%clk 0:01:50]}  f5 {[%clk 0:01:32]} 25. Nd4 {[%clk 0:01:42]}  Bg7 {[%clk 0:01:29]} 26. axb4 {[%clk 0:01:34]}  axb4 {[%clk 0:01:28]} 27. Qb3+ {[%clk 0:01:34]}  Qf7 {[%clk 0:01:17]} 28. Qxb4 {[%clk 0:01:33]}  Rb8 {[%clk 0:01:16]} 29. Qa3 {[%clk 0:01:28]}  Nd2 {[%clk 0:01:13]} 30. Nxc6 {[%clk 0:01:20]}  Ra8 {[%clk 0:01:13]} 31. Qb4 {[%clk 0:01:01]}  Nxf3 {[%clk 0:01:10]} 32. Rxf3 {[%clk 0:01:02]}  Ra1 {[%clk 0:01:08]} 33. Ra3 {[%clk 0:00:45]}  Rb1 {[%clk 0:00:52]} 34. Nd4 {[%clk 0:00:41]}  Ree1 {[%clk 0:00:45]} 35. Nf3 {[%clk 0:00:41]}  Rec1 {[%clk 0:00:41]} 36. Ra8+ {[%clk 0:00:37]}  Bf8 {[%clk 0:00:41]} 37. h3 {[%clk 0:00:30]}  Qd5 {[%clk 0:00:28]} 38. c6 {[%clk 0:00:22]}  Qc5 {[%clk 0:00:16]} 39. Qb3+ {[%clk 0:00:14]}  Qc4 {[%clk 0:00:15]} 40. Qb8 {[%clk 0:00:12]}  Qc5 {[%clk 0:00:12]} 41. Qb3+ {[%clk 0:00:07]}  Kg7 {[%clk 0:00:12]} 42. Qb7+ {[%clk 0:00:04]}  Kh6 {[%clk 0:00:12]} 43. Qa7 {[%clk 0:00:01]}  Rxg1+ {[%clk 0:00:10]} 44. Nxg1 {[%clk 0:00:02]}  Rxg1+ {[%clk 0:00:10]} 45. Kh2 {[%clk 0:00:02]}  Bd6+ {[%clk 0:00:09]} 46. g3 {[%clk 0:00:03]}  Qxa7 {[%clk 0:00:08]} 47. Rxa7 {[%clk 0:00:03]}  Rb1 {[%clk 0:00:08]} 48. c7 {[%clk 0:00:02]}  Rxb2+ {[%clk 0:00:07]} 49. Kh1 {[%clk 0:00:02]}  Rc2 {[%clk 0:00:08]} 50. Ra6 {[%clk 0:00:02]}  Bxc7 {[%clk 0:00:08]} 51. g4 {[%clk 0:00:02]}  f4 {[%clk 0:00:07]} 52. h4 {[%clk 0:00:02]}  f3 {[%clk 0:00:06]} 53. Kg1 {[%clk 0:00:02]}  Rg2+ {[%clk 0:00:05]} 54. Kf1 {[%clk 0:00:02]}  Rxg4 {[%clk 0:00:06]} 55. Kf2 {[%clk 0:00:03]}  Rxh4 {[%clk 0:00:05]} 56. Kxf3 {[%clk 0:00:03]}  Be5 {[%clk 0:00:05]} 57. Kg2 {[%clk 0:00:03]}  Rc4 {[%clk 0:00:05]} 58. Kh1 {[%clk 0:00:03]}  Rc2 {[%clk 0:00:05]} 59. Kg1 {[%clk 0:00:03]}  Bf4 {[%clk 0:00:04]} 60. Kh1 {[%clk 0:00:03]}  Kh5 {[%clk 0:00:04]} 61. Ra4 {[%clk 0:00:04]}  g5 {[%clk 0:00:04]} 62. Ra3 {[%clk 0:00:04]}  h6 {[%clk 0:00:04]} 63. Kg1 {[%clk 0:00:04]}  Kg4 {[%clk 0:00:04]} 64. Kh1 {[%clk 0:00:04]}  Bg3 {[%clk 0:00:04]} 65. Kg1 {[%clk 0:00:02]}  Kh3 {[%clk 0:00:04]} 66. Ra1 {[%clk 0:00:02]}  Rh2 {[%clk 0:00:02]} 67. Ra2 {[%clk 0:00:01]}  Rxa2 {[%clk 0:00:02]} 68. Kf1 {[%clk 0:00:01]}  Ra1+ {[%clk 0:00:02]} 69. Ke2 {[%clk 0:00:02]}  Re1+ {[%clk 0:00:02]} 70. Kf3 {[%clk 0:00:03]}  g4# {[%clk 0:00:02]} 0-1


[Site "https://www.chess.com"]

[Event "Titled Tuesday Blitz January 03 Late 2023"]
[White "Moreno Perez, Tobias Sebastian"]
[Black "Rodriguez Fontecha, Marcos"]
[WhiteFideId "186716"]
[BlackFideId "2256576"]
[WhiteElo "2256"]
[BlackElo "2309"]
[Result "0-1"]
[Round "09"]
[TimeControl "180+2"]
[Date "2023.01.03"]
[WhiteClock "0:00:38"]
[BlackClock "0:00:49"]

1. d4 {[%clk 0:03:00]}  d5 {[%clk 0:03:00]} 2. Bf4 {[%clk 0:02:58]}  Nf6 {[%clk 0:02:59]} 3. e3 {[%clk 0:02:58]}  c5 {[%clk 0:03:00]} 4. c3 {[%clk 0:02:57]}  Qb6 {[%clk 0:02:58]} 5. Qb3 {[%clk 0:02:56]}  Nc6 {[%clk 0:02:57]} 6. Nd2 {[%clk 0:02:52]}  c4 {[%clk 0:02:56]} 7. Qc2 {[%clk 0:02:51]}  g6 {[%clk 0:02:56]} 8. Ngf3 {[%clk 0:02:49]}  Bf5 {[%clk 0:02:56]} 9. Qc1 {[%clk 0:02:50]}  Bg7 {[%clk 0:02:56]} 10. b3 {[%clk 0:02:50]}  cxb3 {[%clk 0:02:53]} 11. axb3 {[%clk 0:02:51]}  O-O {[%clk 0:02:52]} 12. h3 {[%clk 0:02:49]}  Ne4 {[%clk 0:02:53]} 13. Nxe4 {[%clk 0:02:42]}  Bxe4 {[%clk 0:02:52]} 14. Nd2 {[%clk 0:02:42]}  Bf5 {[%clk 0:02:51]} 15. Be2 {[%clk 0:02:28]}  e5 {[%clk 0:02:51]} 16. Bg3 {[%clk 0:02:29]}  exd4 {[%clk 0:02:51]} 17. cxd4 {[%clk 0:02:26]}  Nb4 {[%clk 0:02:49]} 18. O-O {[%clk 0:02:21]}  Rac8 {[%clk 0:02:48]} 19. Qa3 {[%clk 0:02:16]}  Rc2 {[%clk 0:02:39]} 20. Rfd1 {[%clk 0:02:11]}  a6 {[%clk 0:02:34]} 21. Bf1 {[%clk 0:02:09]}  Rfc8 {[%clk 0:02:33]} 22. Nf3 {[%clk 0:02:05]}  Bf8 {[%clk 0:02:28]} 23. Qa4 {[%clk 0:02:03]}  R2c3 {[%clk 0:02:00]} 24. Ne5 {[%clk 0:01:40]}  Nc2 {[%clk 0:01:59]} 25. Rac1 {[%clk 0:01:34]}  Qxb3 {[%clk 0:01:53]} 26. Qa5 {[%clk 0:01:29]}  Nxe3 {[%clk 0:01:32]} 27. Rxc3 {[%clk 0:01:01]}  Rxc3 {[%clk 0:01:15]} 28. fxe3 {[%clk 0:00:57]}  Rxe3 {[%clk 0:01:15]} 29. Bf2 {[%clk 0:00:49]}  Rxe5 {[%clk 0:01:15]} 30. dxe5 {[%clk 0:00:46]}  Qxd1 {[%clk 0:01:14]} 31. Qd8 {[%clk 0:00:47]}  Bd3 {[%clk 0:01:12]} 32. Bc5 {[%clk 0:00:46]}  Qxf1+ {[%clk 0:01:11]} 33. Kh2 {[%clk 0:00:47]}  Qf4+ {[%clk 0:01:11]} 34. Kg1 {[%clk 0:00:46]}  Qh6 {[%clk 0:01:08]} 35. Be7 {[%clk 0:00:38]}  Qe3+ {[%clk 0:00:49]} 36. Kh1 {[%clk 0:00:38]}  Qe1+ {[%clk 0:00:48]} 37. Kh2 {[%clk 0:00:37]}  Qxe5+ {[%clk 0:00:49]} 38. Kg1 {[%clk 0:00:38]}  Qxe7 {[%clk 0:00:49]} 0-1


[Site "https://www.chess.com"]

[Event "Titled Tuesday Blitz January 03 Late 2023"]
[White "Vovk, Orest"]
[Black "Leenhouts, Koen"]
[WhiteFideId "14113490"]
[BlackFideId "1008439"]
[WhiteElo "2315"]
[BlackElo "2447"]
[Result "1/2-1/2"]
[Round "09"]
[TimeControl "180+2"]
[Date "2023.01.03"]
[WhiteClock "0:00:05"]
[BlackClock "0:00:16"]

1. h4 {[%clk 0:02:52]}  e5 {[%clk 0:02:56]} 2. h5 {[%clk 0:02:53]}  Nc6 {[%clk 0:02:55]} 3. d3 {[%clk 0:02:49]}  h6 {[%clk 0:02:52]} 4. Nc3 {[%clk 0:02:48]}  d5 {[%clk 0:02:52]} 5. e4 {[%clk 0:02:48]}  Nf6 {[%clk 0:02:51]} 6. Nxd5 {[%clk 0:02:42]}  Nxd5 {[%clk 0:02:50]} 7. exd5 {[%clk 0:02:43]}  Qxd5 {[%clk 0:02:50]} 8. Be3 {[%clk 0:02:38]}  Be6 {[%clk 0:02:42]} 9. c3 {[%clk 0:02:22]}  O-O-O {[%clk 0:02:37]} 10. Qa4 {[%clk 0:02:21]}  Bc5 {[%clk 0:02:30]} 11. O-O-O {[%clk 0:02:16]}  Bxe3+ {[%clk 0:02:27]} 12. fxe3 {[%clk 0:02:17]}  Qxa2 {[%clk 0:02:25]} 13. Qxa2 {[%clk 0:02:12]}  Bxa2 {[%clk 0:02:26]} 14. Kc2 {[%clk 0:02:02]}  Be6 {[%clk 0:02:24]} 15. Rh4 {[%clk 0:01:55]}  f6 {[%clk 0:02:23]} 16. g3 {[%clk 0:01:53]}  Rd7 {[%clk 0:02:18]} 17. Bh3 {[%clk 0:01:51]}  Bxh3 {[%clk 0:02:17]} 18. Nxh3 {[%clk 0:01:52]}  Rhd8 {[%clk 0:02:17]} 19. Nf2 {[%clk 0:01:48]}  Ne7 {[%clk 0:02:16]} 20. e4 {[%clk 0:01:42]}  c5 {[%clk 0:02:07]} 21. b3 {[%clk 0:01:35]}  Kc7 {[%clk 0:02:04]} 22. Ng4 {[%clk 0:01:29]}  b5 {[%clk 0:02:02]} 23. Ne3 {[%clk 0:01:28]}  Kc6 {[%clk 0:01:55]} 24. Rg4 {[%clk 0:01:27]}  Kb6 {[%clk 0:01:54]} 25. Rxg7 {[%clk 0:01:21]}  a5 {[%clk 0:01:47]} 26. Rf7 {[%clk 0:01:04]}  Ng8 {[%clk 0:01:42]} 27. Nd5+ {[%clk 0:01:03]}  Kc6 {[%clk 0:01:36]} 28. Rxd7 {[%clk 0:01:03]}  Rxd7 {[%clk 0:01:34]} 29. c4 {[%clk 0:01:04]}  Rg7 {[%clk 0:01:30]} 30. Rf1 {[%clk 0:01:01]}  Rxg3 {[%clk 0:01:25]} 31. cxb5+ {[%clk 0:00:57]}  Kxb5 {[%clk 0:01:24]} 32. Nxf6 {[%clk 0:00:58]}  Ne7 {[%clk 0:01:16]} 33. Kc3 {[%clk 0:00:46]}  Rh3 {[%clk 0:01:01]} 34. Nd7 {[%clk 0:00:40]}  Nc6 {[%clk 0:00:52]} 35. Rf5 {[%clk 0:00:23]}  Rh2 {[%clk 0:00:46]} 36. Rf6 {[%clk 0:00:04]}  Rxh5 {[%clk 0:00:42]} 37. Nf8 {[%clk 0:00:02]}  Rh1 {[%clk 0:00:33]} 38. Ne6 {[%clk 0:00:03]}  h5 {[%clk 0:00:19]} 39. Nc7+ {[%clk 0:00:02]}  Kb6 {[%clk 0:00:19]} 40. Nd5+ {[%clk 0:00:03]}  Kb7 {[%clk 0:00:20]} 41. Rh6 {[%clk 0:00:02]}  Nd4 {[%clk 0:00:19]} 42. Kd2 {[%clk 0:00:01]}  Rh2+ {[%clk 0:00:18]} 43. Ke1 {[%clk 0:00:01]}  Nxb3 {[%clk 0:00:18]} 44. Kf1 {[%clk 0:00:01]}  Nd4 {[%clk 0:00:18]} 45. Rh7+ {[%clk 0:00:02]}  Kc6 {[%clk 0:00:17]} 46. Rh6+ {[%clk 0:00:03]}  Kb5 {[%clk 0:00:17]} 47. Rb6+ {[%clk 0:00:03]}  Ka4 {[%clk 0:00:17]} 48. Nc3+ {[%clk 0:00:03]}  Ka3 {[%clk 0:00:17]} 49. Nb1+ {[%clk 0:00:04]}  Ka2 {[%clk 0:00:17]} 50. Nc3+ {[%clk 0:00:05]}  Ka3 {[%clk 0:00:16]} 51. Nb1+ {[%clk 0:00:05]}  Ka4 {[%clk 0:00:16]} 52. Nc3+ {[%clk 0:00:05]}  Ka3 {[%clk 0:00:16]} 1/2-1/2


[Site "https://www.chess.com"]